bitfinex-derivatives/quotes_ETHF0:USTF0_20250810
["timestamp","ask_amount","ask_price","bid_price","bid_amount"]
[1754861132890,0.47446,4214.4,4214.2,1.8742]
[1754861133090,1.42372,4214.7,4214.6,1.8742]
[1754861133286,1.69302,4214.7,4214.6,1.8742]
[1754861133493,1.69302,4214.7,4214.6,0.7325]
[1754861133693,2.08482,4214.7,4214.6,0.7325]
[1754861133893,2.08482,4214.7,4214.6,0.3642]
[1754861134491,0.96835,4214.4,4214.3,0.4728]
[1754861134687,1.3411,4214.1,4214.0,1.8742]
[1754861134996,1.81559,4214.1,4214.0,1.8742]
[1754861135196,2.08489,4214.1,4214.0,0.3642]
[1754861135395,2.08489,4214.1,4214.0,0.7325]
[1754861135596,1.81559,4214.1,4214.0,1.8878]
[1754861135787,2.08359,4214.1,4214.0,1.8878]
[1754861136802,1.81559,4214.1,4214.0,1.8878]
[1754861137097,0.85489,4214.1,4214.0,1.8878]
[1754861138396,0.47448,4214.2,4214.1,0.6835]
[1754861138593,0.47448,4214.2,4214.1,1.8344]
[1754861138900,1.35178,4214.2,4214.1,1.8344]
[1754861139902,0.47448,4214.2,4214.1,1.8344]
[1754861140200,0.47448,4214.2,4213.3,2.1317793]
[1754861140201,0.47447,4214.3,4214.2,1.8344]
[1754861140395,1.08396,4214.4,4214.3,1.2321]
[1754861140597,1.08396,4214.4,4214.3,1.8344]
[1754861140798,1.80266,4214.4,4214.3,1.8344]
[1754861142598,1.1063,4214.4,4213.3,2.1317793]
[1754861142799,1.58084,4213.6,4213.5,1.2583]
[1754861143005,1.80277,4213.4,4213.3,1.2583]
[1754861143206,2.07077,4213.4,4213.3,1.5985]
[1754861143505,2.07077,4213.4,4213.3,1.8344]
[1754861144906,1.80277,4213.4,4213.3,1.8344]
[1754861149105,1.3282,4213.4,4213.3,1.8344]
[1754861149604,1.3282,4213.4,4213.3,1.0792]
[1754861149806,1.3282,4213.4,4213.3,1.8344]
[1754861156412,0.47455,4213.6,4213.3,1.8344]
[1754861156612,1.80275,4213.6,4213.5,1.8344]
[1754861156804,2.07075,4213.6,4213.5,1.8344]
[1754861157113,1.80275,4213.6,4213.5,1.8344]
[1754861157310,0.85495,4213.6,4213.5,1.8344]
[1754861157608,1.35185,4213.6,4213.5,1.8344]
[1754861158415,1.08403,4213.7,4213.6,1.8344]
[1754861158715,1.35183,4213.7,4213.6,1.8344]
[1754861160010,1.57373,4213.7,4213.6,1.8344]
[1754861160411,1.80273,4213.7,4213.6,1.8344]
[1754861161608,1.15453,4213.7,4213.6,1.1573]
[1754861161809,1.80273,4213.7,4213.6,1.8344]
[1754861167416,1.59406,4213.4,4213.3,1.8251]
[1754861167617,1.80316,4213.4,4213.3,1.8251]
[1754861168019,1.3286,4213.4,4213.3,1.8251]
[1754861169320,1.1195,4213.4,4213.3,1.8251]
[1754861170620,0.47456,4213.5,4213.4,0.47456]
[1754861170821,0.85816,4213.5,4213.4,1.8251]
[1754861171123,1.57486,4213.5,4213.4,1.8251]
[1754861172816,1.80316,4213.5,4213.4,1.8251]
[1754861173218,1.59406,4213.5,4213.4,1.8251]
[1754861173826,1.8268,4213.1,4213.0,3.9568793]
[1754861174030,2.0584,4213.1,4213.0,1.8251]
[1754861175613,1.57163,4212.8,4212.7,0.363]
[1754861175818,1.57163,4212.8,4212.7,0.7237]
[1754861175819,2.62711064,4212.8,4212.7,0.7237]
[1754861176021,1.21057,4212.5,4212.4,0.944]
[1754861176227,2.05847,4212.5,4212.4,0.944]
[1754861176519,2.05847,4212.5,4212.4,1.1671]
[1754861176724,2.05847,4212.5,4212.4,1.8251]
[1754861176914,0.7359,4212.1,4212.0,2.8386793]
[1754861177112,0.8912,4212.1,4212.0,2.8386793]
[1754861177319,0.6596,4212.1,4212.0,0.7069]
[1754861177516,0.6596,4212.1,4212.0,1.8251]
[1754861178027,1.3286,4212.1,4212.0,1.8251]
[1754861178518,0.47471,4212.2,4211.3,0.363]
[1754861178519,0.7359,4211.4,4211.3,0.363]
[1754861178712,1.3286,4211.4,4211.3,1.8251]
[1754861179324,0.47483,4211.1,4210.8,0.363]
[1754861179519,1.67503,4211.1,4211.0,1.8251]
[1754861180222,1.80343,4211.1,4211.0,0.363]
[1754861180428,1.80343,4211.1,4209.5,4.16545315]
[1754861180429,1.3661,4210.5,4210.4,0.7069]
[1754861180617,1.8035,4210.5,4210.4,1.0676]
[1754861180814,2.0587,4210.5,4210.4,0.3607]
[1754861181020,1.5838,4210.2,4210.1,0.7237]
[1754861181216,2.15248064,4210.2,4210.1,0.7237]
[1754861181524,2.15248064,4210.2,4210.1,0.363]
[1754861181721,1.2109,4209.5,4209.4,1.72841112]
[1754861181923,1.8036,4209.5,4209.4,2.45211112]
[1754861182222,2.0588,4209.5,4209.4,2.45211112]
[1754861182422,1.3286,4209.5,4209.4,2.84661112]
[1754861184125,0.3836,4210.1,4209.5,0.363]
[1754861184436,1.5838,4210.1,4210.0,1.4306]
[1754861184618,1.5838,4210.1,4210.0,0.944]
[1754861185226,1.5838,4210.1,4210.0,0.363]
[1754861187317,1.5838,4210.1,4210.0,0.944]
[1754861188224,1.5838,4210.1,4210.0,0.5833]
[1754861188628,1.5838,4210.1,4210.0,0.944]
[1754861188828,1.5838,4210.1,4210.0,0.363]
[1754861189730,1.5838,4210.1,4210.0,0.7237]
[1754861190329,1.5838,4210.1,4210.0,0.944]
[1754861190531,1.5838,4210.1,4210.0,1.5616]
[1754861190731,1.5838,4210.1,4210.0,1.8251]
[1754861191327,1.5838,4210.1,4210.0,1.4306]
[1754861192128,1.5838,4210.1,4210.0,1.8251]
[1754861193237,1.57997174,4210.1,4210.0,1.8251]
[1754861194728,0.15074392,4211.0,4210.5,0.47488]
[1754861194934,0.47483,4211.0,4210.9,1.8251]
[1754861195327,0.2091,4211.4,4211.1,1.1182]
[1754861195328,0.47481,4211.2,4211.1,1.1182]
[1754861195527,0.85841,4211.3,4211.2,1.19421]
[1754861195729,0.47479,4211.4,4211.2,1.7884]
[1754861196030,0.47479,4211.4,4211.3,1.7884]
[1754861196031,1.35369,4211.4,4211.3,1.7884]
[1754861196232,0.47479,4211.4,4211.3,1.7884]
[1754861196733,1.19318,4210.7,4210.6,1.1169]
[1754861196931,1.08911,4210.3,4210.2,1.0534]
[1754861197234,0.47491,4210.4,4210.2,1.7484]
[1754861197434,0.47491,4210.4,4210.3,1.1843]
[1754861197628,0.96641,4210.4,4210.3,1.4544]
[1754861197935,1.77711,4210.4,4210.3,1.4544]
[1754861198533,2.05971,4210.4,4210.3,1.053]
[1754861198735,1.77711,4210.4,4210.3,1.4544]
[1754861199133,1.77711,4210.4,4210.3,1.7884]
[1754861199339,0.47491,4210.4,4210.3,1.7884]
[1754861199630,0.96641,4210.4,4210.3,1.7884]
[1754861199835,1.35381,4210.4,4210.3,1.7884]
[1754861200033,0.47491,4210.4,4210.3,1.7884]
[1754861200428,1.35381,4210.4,4210.3,1.7884]
[1754861200628,1.77711,4210.4,4210.3,1.7884]
[1754861201031,1.77711,4210.4,4209.0,1.18763]
[1754861201032,0.47522,4207.7,4207.0,2.97795315]
[1754861201232,0.47517,4208.0,4207.7,0.7194]
[1754861201435,0.47513,4208.4,4208.3,1.4544]
[1754861201838,0.15113423,4209.3,4206.9,0.19386334]
[1754861201839,1.19326423,4209.3,4209.2,1.1208]
[1754861202036,1.04213,4209.3,4209.2,1.4544]
[1754861202240,1.06013,4209.3,4209.2,1.4544]
[1754861202635,1.06013,4209.3,4208.1,0.7194]
[1754861202636,0.47516,4208.2,4208.1,0.7194]
[1754861202943,0.47516,4208.2,4208.1,1.7884]
[1754861205138,0.79828064,4209.1,4209.0,1.4544]
[1754861205440,1.80092,4209.3,4209.2,1.7884]
[1754861205842,2.04392,4209.3,4209.2,1.7884]
[1754861206342,2.04392,4209.3,4209.2,1.4544]
[1754861207143,2.04392,4209.3,4209.2,1.7884]
[1754861209045,0.47506,4209.0,4208.9,0.5018]
[1754861209240,0.47509,4208.8,4208.3,0.47513]
[1754861209447,0.56868064,4208.7,4208.1,0.4014]
[1754861209640,1.3259,4208.2,4208.1,1.053]
[1754861209852,1.3259,4208.2,4207.7,0.3336]
[1754861209853,0.70479,4207.8,4207.7,0.3336]
[1754861210050,2.62797064,4207.8,4207.7,1.053]
[1754861210447,2.62797064,4207.8,4207.7,1.4544]
[1754861210645,0.47525,4207.4,4206.9,0.47529]
[1754861210853,0.47529,4207.0,4206.9,0.7194]
[1754861211048,0.6076,4207.6,4207.0,1.069]
[1754861211347,2.05932,4207.6,4207.5,0.8354]
[1754861211542,2.05932,4207.6,4207.5,1.053]
[1754861211749,2.05932,4207.6,4207.5,1.7884]
[1754861212250,1.04232,4207.6,4207.5,1.7884]
[1754861212454,0.70482,4207.6,4207.5,1.7884]
[1754861212648,0.47522,4207.6,4207.5,1.7884]
[1754861213049,0.70482,4207.6,4207.5,1.7884]
[1754861213656,1.82965,4208.2,4208.1,0.4877]
[1754861213851,1.45165,4208.2,4208.1,1.7884]
[1754861214247,2.05925,4208.2,4208.1,1.7884]
[1754861216150,2.05925,4208.2,4207.4,1.5567]
[1754861216151,0.70483,4207.5,4207.4,1.5567]
[1754861216352,0.47523,4207.5,4207.2,0.47526]
[1754861216554,0.47528,4207.1,4207.0,1.7884]
[1754861216750,0.47525,4207.3,4207.1,1.069]
[1754861216954,0.47525,4207.3,4207.0,0.7194]
[1754861216955,0.70485,4207.3,4207.2,1.7884]
[1754861218347,0.4753,4206.9,4205.9,1.18853]
[1754861218553,0.7049,4206.9,4206.8,1.7884]
[1754861218746,1.18796,4207.9,4206.9,0.47529]
[1754861218956,0.2296,4207.3,4207.2,1.7884]
[1754861219159,0.8372,4207.3,4207.2,1.7884]
[1754861219945,0.47523,4207.5,4207.3,1.7884]
[1754861220146,0.70478,4207.9,4207.8,1.7884]
[1754861220356,1.52535,4208.3,4207.9,1.7884]
[1754861220357,0.47517,4208.0,4207.9,1.7884]
[1754861220752,0.99500167,4208.8,4208.0,0.4014]
[1754861221052,2.37481,4209.9,4208.0,0.4014]
[1754861221053,0.47501,4209.4,4208.9,0.47507]
[1754861221247,0.2582,4209.8,4209.7,0.2317]
[1754861221445,0.47498,4209.7,4209.6,1.7884]
[1754861221647,1.80088,4209.7,4209.6,1.7884]
[1754861221847,0.70458,4209.7,4209.6,1.7884]
[1754861222258,2.05908,4209.7,4209.6,1.7884]
[1754861223164,1.3259,4209.5,4209.4,1.4548]
[1754861223657,0.7939,4209.5,4209.4,1.7884]
[1754861223857,0.5671,4209.5,4209.4,1.7884]
[1754861224254,0.8372,4209.5,4209.4,1.7884]
[1754861225357,0.47499,4209.6,4209.4,1.7884]
[1754861225560,0.47499,4209.6,4209.5,1.7921]
[1754861226755,0.47499,4209.6,4209.0,0.47505]
[1754861226756,0.47508,4208.9,4208.5,0.4751]
[1754861226957,0.47508,4208.9,4208.8,1.4469]
[1754861227265,0.47508,4208.9,4208.8,1.7921]
[1754861227561,0.70568,4208.9,4208.8,1.7921]
[1754861228655,1.03648,4208.9,4208.8,1.7921]
[1754861230156,1.30618,4208.9,4208.8,1.7921]
[1754861230862,0.8311,4208.9,4208.8,1.7921]
[1754861231064,0.15149257,4209.8,4209.5,0.5031]
[1754861231267,0.2306,4209.8,4209.7,0.722]
[1754861231566,0.5614,4209.8,4209.7,0.722]
[1754861231762,0.5614,4209.8,4209.7,1.7921]
[1754861232366,0.8311,4209.8,4209.7,1.7921]
[1754861232966,1.0664,4209.8,4209.7,1.7921]
[1754861233653,1.0664,4209.8,4209.5,0.47499]
[1754861233654,0.8058,4209.5,4208.9,1.0701]
[1754861233853,0.2498,4209.5,4208.5,0.3446]
[1754861234054,0.94955819,4208.9,4208.0,0.47517]
[1754861234253,0.94955819,4208.9,4206.9,26.26879925]
[1754861234254,0.47526,4207.2,4207.0,0.82047]
[1754861234468,0.47533,4206.6,4206.3,0.3446]
[1754861234675,0.47533,4206.6,4206.0,0.3452]
[1754861234676,0.8503,4206.6,4206.0,0.3452]
[1754861234866,0.94955819,4206.8,4206.0,0.3452]
[1754861235053,0.47537,4206.3,4206.0,0.3452]
[1754861235257,0.6005,4205.9,4205.8,1.0751]
[1754861235457,0.3308,4205.9,4205.8,1.0751]
[1754861236164,0.6005,4206.7,4206.3,1.0701]
[1754861236368,1.07583,4206.7,4206.1,0.47538]
[1754861236567,0.5195,4206.9,4205.8,0.005]
[1754861236768,0.3308,4206.5,4206.0,0.3452]
[1754861236971,0.2697,4206.3,4206.1,1.0701]
[1754861237168,0.3308,4206.2,4206.1,1.0701]
[1754861238674,0.6005,4206.3,4205.8,0.005]
[1754861238968,0.6005,4206.3,4206.2,1.0701]
[1754861239572,0.8311,4206.3,4206.2,1.7921]
[1754861241273,1.5943,4206.3,4206.2,1.4475]
[1754861241759,1.5943,4206.3,4205.9,0.3446]
[1754861241760,0.744,4205.9,4205.8,0.005]
[1754861241963,1.5943,4205.9,4205.8,1.4525]
[1754861242175,1.5943,4205.9,4205.8,0.8533]
[1754861242867,1.5943,4205.9,4205.8,1.4525]
[1754861243269,1.5943,4205.9,4205.8,0.005]
[1754861244066,1.5943,4205.9,4205.8,0.3502]
[1754861244272,1.5943,4205.9,4205.8,0.005]
[1754861247477,2.06475,4205.5,4205.4,1.02248273]
[1754861250371,1.03685,4205.5,4205.4,1.02248273]
[1754861250573,2.06475,4205.5,4205.4,1.02248273]
[1754861251174,1.5893,4205.5,4205.4,2.08968273]
[1754861251477,1.5893,4205.5,4205.4,2.81458273]
[1754861251874,0.47544,4205.7,4205.4,1.74448273]
[1754861252081,0.2306,4205.6,4205.5,1.5501]
[1754861252381,1.3395,4205.6,4205.5,1.4475]
[1754861252583,1.5893,4205.6,4205.5,1.4475]
[1754861252777,1.0748,4205.6,4205.5,1.7921]
[1754861252976,0.47545,4205.5,4205.4,1.02248273]
[1754861253175,2.06475,4205.5,4205.4,2.08968273]
[1754861253480,2.06475,4205.5,4205.4,1.02248273]
[1754861254274,2.06475,4205.5,4203.3,1.18923]
[1754861254275,1.18888,4204.7,4204.1,1.0701]
[1754861254473,1.83425,4204.6,4204.5,0.722]
[1754861254769,0.2498,4204.6,4203.4,0.6898]
[1754861254973,0.47563,4204.0,4203.9,0.5031]
[1754861255173,0.70623,4204.0,4203.9,0.722]
[1754861255373,0.2306,4204.0,4203.9,1.7921]
[1754861255584,0.47564,4203.9,4203.8,1.8107]
[1754861255980,0.47563,4204.0,4203.9,1.8107]
[1754861256277,0.8665,4204.3,4204.0,1.8107]
[1754861256278,0.2274,4204.1,4204.0,1.8107]
[1754861256876,1.18882,4204.9,4202.9,0.7011]
[1754861257078,1.334,4204.0,4203.9,1.8107]
[1754861257279,0.4756,4204.3,4203.9,1.8107]
[1754861257479,0.47561,4204.1,4204.0,1.8107]
[1754861257680,0.47565,4203.8,4203.6,0.005]
[1754861257884,0.47565,4203.8,4203.7,1.8107]
[1754861258080,1.5784,4203.7,4203.6,0.005]
[1754861258387,1.5784,4203.7,4203.6,1.8157]
[1754861258582,1.5784,4203.7,4203.6,1.4655]
[1754861258783,1.5784,4203.7,4203.6,1.0784]
[1754861258983,1.5784,4203.7,4203.6,1.8157]
[1754861259188,0.2274,4203.7,4203.6,1.8157]
[1754861260189,1.5784,4203.7,4203.6,1.8157]
[1754861260386,0.2274,4203.7,4203.6,1.8157]
[1754861260890,1.5784,4203.7,4203.6,1.4655]
[1754861261088,1.5784,4203.7,4203.6,1.0784]
[1754861261286,1.5784,4203.7,4203.6,0.005]
[1754861263190,1.5784,4203.7,4203.6,0.582]
[1754861263393,1.5784,4203.7,4203.6,0.005]
[1754861263591,1.5784,4203.7,4202.0,0.47585]
[1754861263592,0.8665,4203.6,4202.0,0.47585]
[1754861263898,0.47581,4202.3,4201.8,0.47587]
[1754861264194,0.70325,4202.1,4202.0,1.8107]
[1754861265189,0.47584,4202.1,4202.0,0.7225]
[1754861265393,1.18781,4201.5,4201.4,2.09615619]
[1754861265589,1.80491,4201.5,4201.4,2.48325619]
[1754861265980,1.80491,4201.5,4201.4,1.24955619]
[1754861266186,2.04931,4201.5,4201.4,1.02345619]
[1754861266588,2.04931,4201.5,4200.7,0.47599]
[1754861266589,0.47603,4200.5,4200.2,1.0734]
[1754861266793,0.47605,4200.3,4200.0,0.7373]
[1754861267093,0.47605,4200.3,4198.8,1.19053]
[1754861267094,0.70345,4200.3,4200.2,1.8107]
[1754861267292,0.2274,4199.9,4199.8,1.4236]
[1754861267491,1.13605819,4200.9,4199.9,1.0882]
[1754861267687,1.13605819,4200.9,4200.0,1.0727]
[1754861267688,0.2274,4200.1,4200.0,1.0727]
[1754861267888,0.70346,4200.1,4200.0,1.8107]
[1754861268089,0.70352,4199.6,4199.5,0.7225]
[1754861268295,0.70352,4199.6,4199.5,1.4236]
[1754861268596,0.70352,4199.6,4199.5,1.8107]
[1754861268996,0.47615,4199.4,4199.2,1.8107]
[1754861269199,0.70355,4199.4,4199.3,1.8107]
[1754861269387,0.94955819,4200.1,4199.0,1.0882]
[1754861269592,0.47608,4200.0,4199.5,0.47613]
[1754861269894,0.4761,4199.8,4199.7,0.7011]
[1754861270293,0.4761,4199.8,4199.7,1.0882]
[1754861270590,0.47613,4199.5,4198.2,1.19071]
[1754861270795,0.47613,4199.5,4198.3,0.3871]
[1754861271191,0.47613,4199.5,4198.4,0.7011]
[1754861271402,0.94955819,4200.1,4197.9,1.0882]
[1754861271590,1.37671,4200.0,4198.7,1.0882]
[1754861271785,1.37671,4200.0,4198.0,1.19076]
[1754861271786,1.37671,4200.0,4198.8,1.0882]
[1754861271991,1.37671,4200.0,4198.9,1.0882]
[1754861272191,1.37671,4200.0,4198.8,0.4762]
[1754861272594,0.47613,4199.6,4199.5,1.8107]
[1754861273498,0.47611,4199.7,4199.5,1.8107]
[1754861273707,0.47611,4199.7,4199.6,1.8107]
[1754861273999,0.48109,4199.9,4199.8,0.2245]
[1754861274191,0.48109,4199.9,4199.8,1.8107]
[1754861274898,0.70849,4199.9,4199.8,1.8107]
[1754861275801,0.48109,4199.9,4199.8,1.8107]
[1754861275996,0.005,4199.9,4199.8,1.8107]
[1754861279197,1.19001,4200.7,4199.8,0.7225]
[1754861279402,0.47598,4200.8,4200.7,0.7225]
[1754861279999,0.47598,4200.8,4200.7,1.8107]
[1754861280298,0.71809,4201.6,4201.5,1.8107]
[1754861280495,0.0091,4201.6,4199.1,0.3509]
[1754861280699,0.47609,4199.9,4199.8,1.8107]
[1754861283506,0.47608,4200.0,4199.8,0.7225]
[1754861283702,0.47608,4200.0,4199.9,1.8107]
[1754861284999,0.56788134,4201.1,4200.0,1.0882]
[1754861285199,0.94955819,4201.5,4200.6,1.0882]
[1754861285200,0.47599,4200.8,4200.6,1.0882]
[1754861285402,0.70339,4200.8,4200.7,1.8107]
[1754861287107,0.89159,4200.8,4200.3,0.7464]
[1754861287297,0.70623,4200.4,4200.3,1.0949]
[1754861287703,0.70623,4200.4,4200.3,0.7642]
[1754861287998,0.70623,4200.4,4200.3,0.6792]
[1754861288202,0.70623,4200.4,4200.3,0.9106]
[1754861288901,0.47603,4200.4,4200.3,1.8292]
[1754861289306,0.70623,4200.4,4200.3,1.8292]
[1754861290903,0.47603,4200.4,4200.3,1.8292]
[1754861291106,0.48098,4200.8,4200.7,1.5996]
[1754861291409,0.48098,4200.8,4200.7,1.8292]
[1754861291605,0.47605,4200.3,4200.2,0.7343]
[1754861291803,0.47605,4200.3,4200.2,1.8292]
[1754861291998,0.47608,4200.0,4199.9,0.005]
[1754861292205,0.70628,4200.0,4199.9,0.3535]
[1754861292502,0.94955819,4200.3,4199.0,0.48489888]
[1754861292708,0.94955819,4200.3,4199.1,1.0949]
[1754861292909,0.94955819,4200.3,4199.2,1.0949]
[1754861293100,1.19017,4200.1,4199.3,1.0949]
[1754861293305,1.19017,4200.1,4199.4,0.6792]
[1754861293505,0.2302,4199.7,4199.6,0.2314]
[1754861293706,0.4761,4199.8,4199.6,0.7343]
[1754861294301,0.7063,4199.8,4199.7,1.8292]
[1754861295001,0.4761,4199.8,4199.7,1.8292]
[1754861295708,0.47609,4199.9,4199.7,0.7343]
[1754861295906,0.47609,4199.9,4199.8,1.8292]
[1754861296316,0.47604,4200.4,4200.2,1.8292]
[1754861296505,0.47603,4200.5,4200.4,0.7343]
[1754861296711,0.70617,4200.9,4200.8,1.8292]
[1754861297015,0.70616,4201.1,4201.0,0.7343]
[1754861297208,0.70616,4201.1,4201.0,1.8292]
[1754861297804,1.26163935,4201.6,4201.1,1.0949]
[1754861298114,0.47598,4200.9,4200.8,1.8292]
[1754861298714,0.47596,4201.1,4201.0,0.6792]
[1754861299012,0.47596,4201.1,4201.0,1.8292]
[1754861299213,0.47594,4201.2,4201.0,0.7343]
[1754861299411,0.47593,4201.3,4201.2,0.7464]
[1754861299609,1.26163935,4202.1,4201.2,0.7343]
[1754861299610,0.47592,4201.4,4201.2,0.7343]
[1754861299810,0.47591,4201.5,4201.4,0.7343]
[1754861300011,0.47591,4201.5,4201.4,1.8292]
[1754861302811,0.4759,4201.6,4201.5,1.8292]
[1754861303417,0.48089,4201.7,4201.5,0.7343]
[1754861303708,0.48089,4201.7,4201.6,1.8292]
[1754861303918,0.005,4201.7,4201.6,1.8292]
[1754861304304,0.47583,4202.2,4202.1,1.8292]
[1754861304506,0.47582,4202.3,4202.2,1.8292]
[1754861305017,0.47579,4202.5,4202.2,2.30503]
[1754861305308,0.0047,4202.6,4202.3,1.8292]
[1754861305309,0.48049,4202.6,4202.3,1.8292]
[1754861305515,0.48049,4202.6,4202.5,0.7343]
[1754861305715,1.90982157,4203.5,4202.5,1.21009]
[1754861305716,0.47576,4202.8,4202.5,1.21009]
[1754861306015,0.70598,4202.6,4202.5,1.8292]
[1754861306212,0.47577,4202.8,4202.5,1.6258]
[1754861306408,0.71067,4202.8,4202.7,1.8292]
[1754861306810,0.47577,4202.8,4202.7,1.8292]
[1754861308011,0.15271023,4203.5,4202.8,1.0949]
[1754861308213,0.2302,4203.4,4203.3,0.7343]
[1754861308515,0.71809,4203.4,4203.3,0.7343]
[1754861308931,0.47575,4202.9,4202.8,1.5559]
[1754861309215,0.71065,4202.9,4202.8,1.8292]
[1754861309405,0.2349,4202.9,4202.8,1.8292]
[1754861309611,0.47574,4203.0,4202.9,1.8292]
[1754861310114,0.70594,4203.0,4202.9,1.8292]
[1754861310516,0.71064,4203.0,4202.9,1.8292]
[1754861310720,0.71814,4203.0,4202.9,1.8292]
[1754861311518,0.71064,4203.0,4202.9,1.8292]
[1754861311919,0.70594,4203.0,4202.9,1.8292]
[1754861312317,0.47573,4203.1,4202.9,1.21005]
[1754861312517,0.47573,4203.1,4203.0,1.8292]
[1754861312719,0.47572,4203.2,4203.1,1.8292]
[1754861312920,0.71812,4203.2,4203.1,1.8292]
[1754861314023,0.47571,4203.3,4203.1,2.30493]
[1754861314227,0.47571,4203.3,4203.2,1.8292]
[1754861314716,0.4757,4203.4,4203.3,1.8292]
[1754861315115,0.47569,4203.5,4203.4,1.5996]
[1754861315319,0.70589,4203.5,4203.4,1.8292]
[1754861317123,0.71019,4203.5,4203.4,1.8292]
[1754861317624,0.47569,4203.5,4203.4,1.8292]
[1754861318521,0.71699,4203.5,4203.4,1.8292]
[1754861325119,0.70459,4203.5,4203.4,1.8292]
[1754861326323,0.47569,4203.5,4203.4,1.8292]
[1754861327715,0.47567,4203.7,4203.6,0.2169]
[1754861327921,0.47567,4203.7,4203.6,1.7792]
[1754861332028,0.48066,4203.8,4203.7,1.7792]
[1754861333830,0.48066,4203.8,4203.0,0.005]
[1754861333831,0.3451,4203.6,4203.0,0.005]
[1754861334033,1.06213,4203.1,4203.0,0.4967]
[1754861334232,0.71703,4203.1,4203.0,0.5411]
[1754861334437,1.06213,4203.1,4203.0,0.005]
[1754861335733,2.80769184,4205.6,4203.8,0.7391]
[1754861336032,2.93045934,4206.1,4203.7,1.1263]
[1754861336033,0.5093,4203.8,4203.7,1.1263]
[1754861336337,1.18884,4204.9,4203.0,0.09]
[1754861336338,0.47567,4203.6,4203.0,0.4199]
[1754861336534,0.47571,4203.3,4202.5,0.47579]
[1754861336731,0.2289,4202.7,4202.6,2.25499]
[1754861336928,1.31528669,4203.8,4203.5,0.7536]
[1754861337134,0.5093,4203.8,4203.7,1.7792]
[1754861337440,0.5093,4203.8,4201.5,34.268]
[1754861337441,0.47579,4202.7,4202.1,1.12874]
[1754861337736,0.47579,4202.7,4200.2,36.3997793]
[1754861337737,0.8544,4201.9,4201.8,1.7792]
[1754861338137,0.2289,4201.9,4201.8,1.7792]
[1754861338438,0.47586,4202.0,4201.9,1.7792]
[1754861338640,1.80506,4202.0,4201.9,1.7792]
[1754861338833,1.85526,4202.0,4201.9,1.7792]
[1754861339440,1.3794,4202.0,4201.9,1.7792]
[1754861340348,1.3292,4202.0,4201.9,1.7792]
[1754861340545,1.2488,4202.0,4201.9,1.7792]
[1754861341540,0.47583,4202.2,4200.6,1.19002]
[1754861341541,1.3292,4202.6,4202.5,1.0256]
[1754861341740,0.7395,4202.5,4201.5,0.7536]
[1754861342042,0.7395,4202.5,4201.0,1.18993]
[1754861342043,0.5897,4202.3,4202.2,0.7064]
[1754861342344,0.5897,4202.3,4201.0,1.18993]
[1754861342345,0.6399,4202.3,4201.2,0.3192]
[1754861342541,0.75628,4201.8,4201.7,1.46]
[1754861342741,1.85528,4201.8,4201.7,1.46]
[1754861342941,1.85528,4201.8,4201.2,1.22954]
[1754861343246,1.18943,4202.8,4201.5,0.2169]
[1754861343247,1.85531,4201.6,4201.5,0.2169]
[1754861343447,1.06563,4201.4,4201.3,1.7792]
[1754861343747,1.11583,4201.4,4201.3,1.7792]
[1754861344047,1.85533,4201.4,4201.3,1.7792]
[1754861344638,0.47595,4201.2,4201.0,0.3192]
[1754861344845,0.5093,4201.2,4201.1,1.7792]
[1754861345443,1.2446,4201.2,4201.1,1.7792]
[1754861345946,1.325,4201.2,4201.1,1.0256]
[1754861346148,1.80941,4200.8,4200.7,0.005]
[1754861346649,1.80941,4200.8,4200.7,0.3392]
[1754861347754,1.80941,4200.8,4200.7,1.7483]
[1754861348547,1.80941,4200.8,4200.7,1.0438]
[1754861349245,1.80941,4200.8,4199.4,1.19043]
[1754861349246,0.7802,4200.3,4199.2,0.7206]
[1754861349448,1.2167,4199.7,4199.6,1.7433]
[1754861349648,1.3334,4199.7,4199.6,1.0388]
[1754861350449,1.3334,4199.7,4199.6,0.554]
[1754861350748,1.3334,4199.4,4199.3,1.7433]
[1754861351948,1.3334,4199.4,4199.3,2.21948]
[1754861352150,1.3334,4199.4,4199.3,1.7433]
[1754861352755,0.95748,4200.2,4200.1,0.7046]
[1754861352947,1.02478,4200.2,4200.1,0.7046]
[1754861353148,1.80218,4200.2,4200.1,1.4252]
[1754861353847,1.80218,4200.2,4200.1,1.0388]
[1754861354048,1.80218,4200.2,4200.1,1.7433]
[1754861354852,1.80223,4199.8,4199.7,0.0081695]
[1754861356343,24.22823,4199.8,4199.7,0.0081695]
[1754861356645,30.22523,4199.8,4199.7,0.0081695]
[1754861356846,1.80232,4199.0,4198.9,0.3342]
[1754861357251,1.80232,4199.0,4198.9,0.554]
[1754861357749,1.80232,4199.0,4198.9,1.0388]
[1754861357948,1.80232,4199.0,4198.9,1.7433]
[1754861358453,1.76022,4199.0,4198.9,1.7433]
[1754861358850,0.47622,4199.0,4198.9,1.7433]
[1754861359051,0.3352,4198.9,4196.8,0.24304085]
[1754861359253,0.47634,4197.9,4197.8,1.091]
[1754861359459,1.58284,4197.9,4197.8,0.4898]
[1754861360155,1.58284,4197.9,4197.8,0.005]
[1754861362956,1.25884,4197.9,4197.8,0.005]
[1754861363160,1.58284,4197.9,4197.8,0.005]
[1754861365055,0.47634,4197.9,4197.8,0.005]
[1754861365255,1.25884,4197.9,4197.8,1.7483]
[1754861365556,1.58284,4197.9,4197.8,1.7483]